[Event "Titled Tuesday Blitz May 2 Late 2023"]
[White "Martinez Ramirez, Lennis"]
[Black "Ladan, Nicholas"]
[WhiteFideId "3509079"]
[BlackFideId "30918855"]
[WhiteElo "2410"]
[BlackElo "2167"]
[Result "1-0"]
[Round "05"]
[TimeControl "180+2"]
[Date "2023.05.02"]
[WhiteClock "0:00:15"]
[BlackClock "0:00:01"]

1. Nf3 {[%clk 0:03:00]}  d5 {[%clk 0:02:57]} 2. c4 {[%clk 0:03:00]}  c6 {[%clk 0:02:56]} 3. g3 {[%clk 0:02:59]}  Nf6 {[%clk 0:02:55]} 4. Bg2 {[%clk 0:02:59]}  g6 {[%clk 0:02:54]} 5. b3 {[%clk 0:02:59]}  Bg7 {[%clk 0:02:55]} 6. Bb2 {[%clk 0:02:59]}  O-O {[%clk 0:02:56]} 7. O-O {[%clk 0:02:58]}  a5 {[%clk 0:02:56]} 8. Nc3 {[%clk 0:02:55]}  Na6 {[%clk 0:02:54]} 9. d3 {[%clk 0:02:53]}  Bd7 {[%clk 0:02:51]} 10. Ne5 {[%clk 0:02:47]}  Be6 {[%clk 0:02:50]} 11. Qd2 {[%clk 0:02:42]}  d4 {[%clk 0:02:42]} 12. Nd1 {[%clk 0:02:18]}  h5 {[%clk 0:02:15]} 13. Nf3 {[%clk 0:02:13]}  Ng4 {[%clk 0:02:15]} 14. h3 {[%clk 0:02:12]}  Nh6 {[%clk 0:02:14]} 15. Nxd4 {[%clk 0:02:04]}  Bxd4 {[%clk 0:02:05]} 16. Qxh6 {[%clk 0:02:03]}  Bxb2 {[%clk 0:02:02]} 17. Nxb2 {[%clk 0:02:04]}  Qd4 {[%clk 0:02:02]} 18. Qd2 {[%clk 0:01:59]}  Rfd8 {[%clk 0:01:55]} 19. e3 {[%clk 0:01:59]}  Qg7 {[%clk 0:01:53]} 20. d4 {[%clk 0:01:59]}  c5 {[%clk 0:01:37]} 21. d5 {[%clk 0:01:45]}  Bf5 {[%clk 0:01:36]} 22. e4 {[%clk 0:01:43]}  Bd7 {[%clk 0:01:25]} 23. Nd3 {[%clk 0:01:42]}  a4 {[%clk 0:01:10]} 24. e5 {[%clk 0:01:41]}  axb3 {[%clk 0:01:07]} 25. axb3 {[%clk 0:01:40]}  Nb4 {[%clk 0:01:06]} 26. Nxb4 {[%clk 0:01:38]}  cxb4 {[%clk 0:01:05]} 27. f4 {[%clk 0:01:30]}  g5 {[%clk 0:00:59]} 28. Qxb4 {[%clk 0:01:26]}  gxf4 {[%clk 0:00:48]} 29. Rxa8 {[%clk 0:01:23]}  Rxa8 {[%clk 0:00:47]} 30. Qxe7 {[%clk 0:01:24]}  Bxh3 {[%clk 0:00:35]} 31. Qh4 {[%clk 0:00:46]}  Bxg2 {[%clk 0:00:30]} 32. Kxg2 {[%clk 0:00:47]}  Ra2+ {[%clk 0:00:20]} 33. Rf2 {[%clk 0:00:45]}  Rxf2+ {[%clk 0:00:19]} 34. Kxf2 {[%clk 0:00:46]}  Qxe5 {[%clk 0:00:19]} 35. Qxf4 {[%clk 0:00:45]}  Qb2+ {[%clk 0:00:19]} 36. Kg1 {[%clk 0:00:42]}  Qxb3 {[%clk 0:00:18]} 37. Qg5+ {[%clk 0:00:36]}  Kf8 {[%clk 0:00:16]} 38. Qf4 {[%clk 0:00:34]}  Qd1+ {[%clk 0:00:14]} 39. Kg2 {[%clk 0:00:33]}  Kg7 {[%clk 0:00:06]} 40. Qe5+ {[%clk 0:00:29]}  Kg8 {[%clk 0:00:06]} 41. d6 {[%clk 0:00:29]}  Qc2+ {[%clk 0:00:04]} 42. Kf3 {[%clk 0:00:29]}  Qxc4 {[%clk 0:00:04]} 43. Qe8+ {[%clk 0:00:29]}  Kg7 {[%clk 0:00:04]} 44. Qe5+ {[%clk 0:00:28]}  f6 {[%clk 0:00:04]} 45. Qe7+ {[%clk 0:00:28]}  Qf7 {[%clk 0:00:03]} 46. Qe4 {[%clk 0:00:22]}  Qb3+ {[%clk 0:00:03]} 47. Kf4 {[%clk 0:00:17]}  Qd1 {[%clk 0:00:04]} 48. Qe7+ {[%clk 0:00:16]}  Kg6 {[%clk 0:00:04]} 49. Qe8+ {[%clk 0:00:16]}  Kg7 {[%clk 0:00:03]} 50. d7 {[%clk 0:00:16]}  Qf1+ {[%clk 0:00:03]} 51. Ke4 {[%clk 0:00:17]}  Qe2+ {[%clk 0:00:03]} 52. Kd5 {[%clk 0:00:17]}  Qb5+ {[%clk 0:00:03]} 53. Ke6 {[%clk 0:00:18]}  Qc6+ {[%clk 0:00:03]} 54. Ke7 {[%clk 0:00:17]}  Qc5+ {[%clk 0:00:02]} 55. Kd8 {[%clk 0:00:15]}  Qb6+ {[%clk 0:00:02]} 56. Kc8 {[%clk 0:00:14]}  Qc6+ {[%clk 0:00:02]} 57. Kb8 {[%clk 0:00:15]}  Qd6+ {[%clk 0:00:03]} 58. Ka7 {[%clk 0:00:15]}  Qc5+ {[%clk 0:00:03]} 59. Ka8 {[%clk 0:00:15]}  Qa5+ {[%clk 0:00:03]} 60. Kb8 {[%clk 0:00:15]}  Qe5+ {[%clk 0:00:01]} 61. Qxe5 {[%clk 0:00:15]} 1-0


[Site "https://www.chess.com"]

[Event "Titled Tuesday Blitz May 2 Late 2023"]
[White "Rosen, Eric"]
[Black "Baltic, Fatih"]
[WhiteFideId "2032562"]
[BlackFideId "12979090"]
[WhiteElo "2331"]
[BlackElo "2200"]
[Result "1-0"]
[Round "05"]
[TimeControl "180+2"]
[Date "2023.05.02"]
[WhiteClock "0:00:43"]
[BlackClock "0:00:20"]

1. d4 {[%clk 0:03:00]}  Nf6 {[%clk 0:02:58]} 2. Bf4 {[%clk 0:03:01]}  g6 {[%clk 0:02:57]} 3. Nc3 {[%clk 0:03:01]}  d6 {[%clk 0:02:56]} 4. e4 {[%clk 0:03:01]}  Bg7 {[%clk 0:02:56]} 5. Qd2 {[%clk 0:03:01]}  Nc6 {[%clk 0:02:50]} 6. O-O-O {[%clk 0:03:00]}  h6 {[%clk 0:02:31]} 7. Bb5 {[%clk 0:02:42]}  Bd7 {[%clk 0:02:29]} 8. f3 {[%clk 0:02:35]}  Nh5 {[%clk 0:02:17]} 9. Be3 {[%clk 0:02:34]}  e5 {[%clk 0:02:17]} 10. Nge2 {[%clk 0:02:33]}  a6 {[%clk 0:02:10]} 11. Bxc6 {[%clk 0:02:16]}  Bxc6 {[%clk 0:02:09]} 12. g4 {[%clk 0:02:16]}  Nf6 {[%clk 0:02:07]} 13. h4 {[%clk 0:02:16]}  Qe7 {[%clk 0:02:01]} 14. Kb1 {[%clk 0:02:14]}  O-O-O {[%clk 0:02:01]} 15. d5 {[%clk 0:02:14]}  Bd7 {[%clk 0:02:00]} 16. Nc1 {[%clk 0:02:14]}  Kb8 {[%clk 0:01:59]} 17. Nb3 {[%clk 0:02:14]}  Bc8 {[%clk 0:01:59]} 18. Na4 {[%clk 0:02:08]}  Nd7 {[%clk 0:01:47]} 19. Qb4 {[%clk 0:02:06]}  f5 {[%clk 0:01:46]} 20. Na5 {[%clk 0:02:00]}  Ka8 {[%clk 0:01:44]} 21. Rd3 {[%clk 0:01:57]}  fxe4 {[%clk 0:01:41]} 22. fxe4 {[%clk 0:01:57]}  Nc5 {[%clk 0:01:36]} 23. Nxc5 {[%clk 0:01:44]}  dxc5 {[%clk 0:01:37]} 24. Bxc5 {[%clk 0:01:44]}  Qd7 {[%clk 0:01:37]} 25. Rb3 {[%clk 0:01:36]}  Qb5 {[%clk 0:01:06]} 26. Qc3 {[%clk 0:01:19]}  Qe2 {[%clk 0:01:06]} 27. Re1 {[%clk 0:01:19]}  Qxg4 {[%clk 0:01:06]} 28. Bf2 {[%clk 0:01:02]}  Qf4 {[%clk 0:00:56]} 29. Qc5 {[%clk 0:00:56]}  b6 {[%clk 0:00:39]} 30. Qc6+ {[%clk 0:00:56]}  Ka7 {[%clk 0:00:24]} 31. Qxc7+ {[%clk 0:00:53]}  Ka8 {[%clk 0:00:23]} 32. Qc6+ {[%clk 0:00:52]}  Ka7 {[%clk 0:00:21]} 33. Bxb6+ {[%clk 0:00:52]}  Kb8 {[%clk 0:00:21]} 34. Bc7+ {[%clk 0:00:45]}  Ka7 {[%clk 0:00:20]} 35. Bb8# {[%clk 0:00:43]} 1-0


[Site "https://www.chess.com"]

[Event "Titled Tuesday Blitz May 2 Late 2023"]
[White "Ambartsumova, Karina"]
[Black "Karthik, Advaith"]
[WhiteFideId "4166299"]
[BlackFideId "30946050"]
[WhiteElo "2240"]
[BlackElo "2004"]
[Result "1-0"]
[Round "05"]
[TimeControl "180+2"]
[Date "2023.05.02"]
[WhiteClock "0:00:09"]
[BlackClock "0:00:01"]

1. e4 {[%clk 0:03:00]}  c5 {[%clk 0:02:56]} 2. Nf3 {[%clk 0:02:59]}  Nc6 {[%clk 0:02:56]} 3. d4 {[%clk 0:02:57]}  cxd4 {[%clk 0:02:55]} 4. Nxd4 {[%clk 0:02:58]}  Nf6 {[%clk 0:02:54]} 5. Nc3 {[%clk 0:02:58]}  e5 {[%clk 0:02:52]} 6. Ndb5 {[%clk 0:02:58]}  d6 {[%clk 0:02:52]} 7. Nd5 {[%clk 0:02:57]}  Nxd5 {[%clk 0:02:52]} 8. exd5 {[%clk 0:02:58]}  Ne7 {[%clk 0:02:52]} 9. a4 {[%clk 0:02:57]}  Ng6 {[%clk 0:02:51]} 10. a5 {[%clk 0:02:56]}  a6 {[%clk 0:02:50]} 11. Nc3 {[%clk 0:02:55]}  Be7 {[%clk 0:02:49]} 12. Be3 {[%clk 0:02:56]}  O-O {[%clk 0:02:49]} 13. Be2 {[%clk 0:02:53]}  f5 {[%clk 0:02:49]} 14. O-O {[%clk 0:02:53]}  Bg5 {[%clk 0:02:45]} 15. Qd2 {[%clk 0:02:42]}  h6 {[%clk 0:01:55]} 16. f3 {[%clk 0:02:23]}  Bxe3+ {[%clk 0:01:51]} 17. Qxe3 {[%clk 0:02:24]}  Nf4 {[%clk 0:01:48]} 18. Qf2 {[%clk 0:02:19]}  Qg5 {[%clk 0:01:46]} 19. Kh1 {[%clk 0:02:19]}  Bd7 {[%clk 0:01:45]} 20. g3 {[%clk 0:02:13]}  Ng6 {[%clk 0:01:35]} 21. f4 {[%clk 0:02:13]}  Qf6 {[%clk 0:01:34]} 22. Bh5 {[%clk 0:02:07]}  Rac8 {[%clk 0:01:24]} 23. Rae1 {[%clk 0:01:46]}  e4 {[%clk 0:01:21]} 24. Bxg6 {[%clk 0:01:45]}  Qxg6 {[%clk 0:01:22]} 25. Qd4 {[%clk 0:01:45]}  Qf6 {[%clk 0:01:21]} 26. Rd1 {[%clk 0:01:44]}  Qxd4 {[%clk 0:01:20]} 27. Rxd4 {[%clk 0:01:45]}  Rc5 {[%clk 0:01:20]} 28. Ra1 {[%clk 0:01:42]}  Rfc8 {[%clk 0:01:11]} 29. Kg2 {[%clk 0:01:37]}  Be8 {[%clk 0:01:11]} 30. Kf2 {[%clk 0:01:35]}  Bf7 {[%clk 0:01:10]} 31. Ke3 {[%clk 0:01:34]}  Kf8 {[%clk 0:01:06]} 32. Ra3 {[%clk 0:01:18]}  g5 {[%clk 0:01:04]} 33. g4 {[%clk 0:01:14]}  fxg4 {[%clk 0:00:53]} 34. fxg5 {[%clk 0:01:03]}  hxg5 {[%clk 0:00:48]} 35. Rb3 {[%clk 0:01:03]}  R8c7 {[%clk 0:00:42]} 36. Rb6 {[%clk 0:01:03]}  Rd7 {[%clk 0:00:28]} 37. Rxe4 {[%clk 0:01:00]}  Bxd5 {[%clk 0:00:27]} 38. Rxg4 {[%clk 0:00:57]}  Bc6 {[%clk 0:00:27]} 39. Kd4 {[%clk 0:00:55]}  Rf7 {[%clk 0:00:26]} 40. b4 {[%clk 0:00:46]}  Rcf5 {[%clk 0:00:22]} 41. b5 {[%clk 0:00:37]}  Bxb5 {[%clk 0:00:20]} 42. Rxd6 {[%clk 0:00:35]}  Rf4+ {[%clk 0:00:20]} 43. Rxf4 {[%clk 0:00:35]}  gxf4 {[%clk 0:00:21]} 44. Nxb5 {[%clk 0:00:26]}  f3 {[%clk 0:00:21]} 45. Kc5 {[%clk 0:00:09]}  f2 {[%clk 0:00:21]} 46. Rd1 {[%clk 0:00:10]}  f1=Q {[%clk 0:00:16]} 47. Rxf1 {[%clk 0:00:10]}  Rxf1 {[%clk 0:00:16]} 48. Nd6 {[%clk 0:00:11]}  Rf2 {[%clk 0:00:13]} 49. c4 {[%clk 0:00:11]}  Rxh2 {[%clk 0:00:12]} 50. Nxb7 {[%clk 0:00:11]}  Ke7 {[%clk 0:00:11]} 51. Kb6 {[%clk 0:00:09]}  Rh6+ {[%clk 0:00:11]} 52. Kc7 {[%clk 0:00:08]}  Rh5 {[%clk 0:00:09]} 53. c5 {[%clk 0:00:09]}  Rg5 {[%clk 0:00:07]} 54. Kb6 {[%clk 0:00:09]}  Kd7 {[%clk 0:00:06]} 55. c6+ {[%clk 0:00:09]}  Ke7 {[%clk 0:00:01]} 56. Nc5 {[%clk 0:00:09]} 1-0


[Site "https://www.chess.com"]

[Event "Titled Tuesday Blitz May 2 Late 2023"]
[White "Ciolacu, Alessia-Mihaela"]
[Black "Marek, Matyas"]
[WhiteFideId "1252640"]
[BlackFideId "335398"]
[WhiteElo "1913"]
[BlackElo "2279"]
[Result "1-0"]
[Round "05"]
[TimeControl "180+2"]
[Date "2023.05.02"]
[WhiteClock "0:00:09"]
[BlackClock "0:00:09"]

1. e4 {[%clk 0:03:00]}  c5 {[%clk 0:02:57]} 2. Nf3 {[%clk 0:02:56]}  d6 {[%clk 0:02:57]} 3. d4 {[%clk 0:02:54]}  cxd4 {[%clk 0:02:58]} 4. Nxd4 {[%clk 0:02:55]}  Nf6 {[%clk 0:02:59]} 5. Nc3 {[%clk 0:02:55]}  Nc6 {[%clk 0:02:59]} 6. Bg5 {[%clk 0:02:53]}  e6 {[%clk 0:02:59]} 7. Qd2 {[%clk 0:02:53]}  a6 {[%clk 0:03:00]} 8. O-O-O {[%clk 0:02:50]}  Bd7 {[%clk 0:03:00]} 9. f4 {[%clk 0:02:50]}  b5 {[%clk 0:03:00]} 10. Bxf6 {[%clk 0:02:48]}  gxf6 {[%clk 0:02:59]} 11. Kb1 {[%clk 0:02:46]}  Qb6 {[%clk 0:02:58]} 12. Nce2 {[%clk 0:02:46]}  O-O-O {[%clk 0:02:31]} 13. h4 {[%clk 0:02:42]}  Kb8 {[%clk 0:02:24]} 14. h5 {[%clk 0:02:24]}  Rg8 {[%clk 0:02:20]} 15. Nf3 {[%clk 0:02:16]}  Be7 {[%clk 0:02:15]} 16. f5 {[%clk 0:02:13]}  Ne5 {[%clk 0:02:06]} 17. Nf4 {[%clk 0:02:05]}  Rg4 {[%clk 0:01:54]} 18. Be2 {[%clk 0:02:00]}  Rg3 {[%clk 0:01:49]} 19. Nd4 {[%clk 0:01:48]}  Nc6 {[%clk 0:01:32]} 20. Nxc6+ {[%clk 0:01:36]}  Qxc6 {[%clk 0:01:28]} 21. Bf3 {[%clk 0:01:36]}  Qc5 {[%clk 0:01:23]} 22. Nd3 {[%clk 0:01:27]}  Qb6 {[%clk 0:01:16]} 23. Qh6 {[%clk 0:01:20]}  exf5 {[%clk 0:01:02]} 24. Qxh7 {[%clk 0:01:18]}  Be6 {[%clk 0:00:46]} 25. exf5 {[%clk 0:01:14]}  Bc4 {[%clk 0:00:46]} 26. Qh6 {[%clk 0:01:11]}  d5 {[%clk 0:00:40]} 27. Qd2 {[%clk 0:01:04]}  d4 {[%clk 0:00:36]} 28. h6 {[%clk 0:00:57]}  Rgg8 {[%clk 0:00:35]} 29. h7 {[%clk 0:00:54]}  Rh8 {[%clk 0:00:35]} 30. Qf4+ {[%clk 0:00:55]}  Bd6 {[%clk 0:00:35]} 31. Qe4 {[%clk 0:00:54]}  Ka7 {[%clk 0:00:33]} 32. Qh4 {[%clk 0:00:47]}  Qa5 {[%clk 0:00:31]} 33. b3 {[%clk 0:00:43]}  Bxd3 {[%clk 0:00:23]} 34. Rxd3 {[%clk 0:00:42]}  Bc5 {[%clk 0:00:23]} 35. Qxf6 {[%clk 0:00:38]}  Qb6 {[%clk 0:00:16]} 36. Qxf7+ {[%clk 0:00:38]}  Kb8 {[%clk 0:00:16]} 37. Re1 {[%clk 0:00:35]}  Qc7 {[%clk 0:00:14]} 38. Qg6 {[%clk 0:00:24]}  Rxh7 {[%clk 0:00:12]} 39. f6 {[%clk 0:00:23]}  Rf7 {[%clk 0:00:11]} 40. g4 {[%clk 0:00:21]}  Bb4 {[%clk 0:00:10]} 41. Re6 {[%clk 0:00:17]}  Rc8 {[%clk 0:00:10]} 42. Rc6 {[%clk 0:00:16]}  Qe5 {[%clk 0:00:05]} 43. Rxc8+ {[%clk 0:00:16]}  Kxc8 {[%clk 0:00:05]} 44. Qxf7 {[%clk 0:00:13]}  Qe1+ {[%clk 0:00:06]} 45. Rd1 {[%clk 0:00:13]}  Qc3 {[%clk 0:00:06]} 46. Qb7+ {[%clk 0:00:13]}  Kd8 {[%clk 0:00:06]} 47. Qb8+ {[%clk 0:00:13]}  Kd7 {[%clk 0:00:06]} 48. Qb7+ {[%clk 0:00:13]}  Kd8 {[%clk 0:00:07]} 49. f7 {[%clk 0:00:11]}  Ba3 {[%clk 0:00:07]} 50. Qd5+ {[%clk 0:00:11]}  Kc7 {[%clk 0:00:07]} 51. Qc6+ {[%clk 0:00:08]}  Qxc6 {[%clk 0:00:07]} 52. Bxc6 {[%clk 0:00:09]}  Kxc6 {[%clk 0:00:07]} 53. Rxd4 {[%clk 0:00:09]}  Kc5 {[%clk 0:00:08]} 54. f8=Q+ {[%clk 0:00:09]}  Kxd4 {[%clk 0:00:09]} 55. Qxa3 {[%clk 0:00:09]} 1-0


[Site "https://www.chess.com"]

[Event "Titled Tuesday Blitz May 2 Late 2023"]
[White "Jovic, Stanoje"]
[Black "Rafiee, Makan"]
[WhiteFideId "905020"]
[BlackFideId "24609340"]
[WhiteElo "2236"]
[BlackElo "2327"]
[Result "1-0"]
[Round "05"]
[TimeControl "180+2"]
[Date "2023.05.02"]
[WhiteClock "0:00:37"]
[BlackClock "0:00:27"]

1. c4 {[%clk 0:03:00]}  c6 {[%clk 0:02:59]} 2. e4 {[%clk 0:03:00]}  d5 {[%clk 0:02:54]} 3. exd5 {[%clk 0:03:01]}  cxd5 {[%clk 0:02:55]} 4. cxd5 {[%clk 0:03:01]}  Nf6 {[%clk 0:02:55]} 5. Qa4+ {[%clk 0:03:01]}  Nbd7 {[%clk 0:02:53]} 6. Bc4 {[%clk 0:03:01]}  g6 {[%clk 0:02:53]} 7. d3 {[%clk 0:03:01]}  Bg7 {[%clk 0:02:54]} 8. Nc3 {[%clk 0:03:01]}  O-O {[%clk 0:02:54]} 9. Nf3 {[%clk 0:03:01]}  Nb6 {[%clk 0:02:54]} 10. Qb3 {[%clk 0:03:01]}  Bg4 {[%clk 0:02:46]} 11. Ne5 {[%clk 0:03:00]}  Bf5 {[%clk 0:02:43]} 12. O-O {[%clk 0:02:57]}  Nfd7 {[%clk 0:02:33]} 13. Nxd7 {[%clk 0:02:54]}  Qxd7 {[%clk 0:02:34]} 14. Be3 {[%clk 0:02:50]}  Nc8 {[%clk 0:02:19]} 15. Ne4 {[%clk 0:02:31]}  Nd6 {[%clk 0:02:10]} 16. Nxd6 {[%clk 0:02:31]}  exd6 {[%clk 0:01:58]} 17. a4 {[%clk 0:02:28]}  h5 {[%clk 0:01:56]} 18. a5 {[%clk 0:02:26]}  h4 {[%clk 0:01:54]} 19. Qb5 {[%clk 0:02:17]}  Qxb5 {[%clk 0:01:40]} 20. Bxb5 {[%clk 0:02:17]}  Bxb2 {[%clk 0:01:40]} 21. Rab1 {[%clk 0:02:15]}  Bc3 {[%clk 0:01:40]} 22. a6 {[%clk 0:02:11]}  b6 {[%clk 0:01:41]} 23. Rfc1 {[%clk 0:01:59]}  Rac8 {[%clk 0:01:39]} 24. Rb3 {[%clk 0:01:54]}  Bd4 {[%clk 0:01:08]} 25. Rc6 {[%clk 0:01:50]}  Rfe8 {[%clk 0:00:59]} 26. g4 {[%clk 0:01:24]}  Bxe3 {[%clk 0:00:41]} 27. gxf5 {[%clk 0:01:14]}  Bc5 {[%clk 0:00:40]} 28. Kg2 {[%clk 0:01:00]}  gxf5 {[%clk 0:00:36]} 29. d4 {[%clk 0:00:54]}  Bxd4 {[%clk 0:00:33]} 30. Rxd6 {[%clk 0:00:52]}  Re2 {[%clk 0:00:30]} 31. Bxe2 {[%clk 0:00:40]}  Rc2 {[%clk 0:00:27]} 32. Kf3 {[%clk 0:00:37]} 1-0


[Site "https://www.chess.com"]

[Event "Titled Tuesday Blitz May 2 Late 2023"]
[White "Melikyan, Gnel"]
[Black "Sai Han Thiha"]
[WhiteFideId "54109990"]
[BlackFideId "13012290"]
[WhiteElo "2138"]
[BlackElo "1954"]
[Result "1-0"]
[Round "05"]
[TimeControl "180+2"]
[Date "2023.05.02"]
[WhiteClock "0:00:17"]
[BlackClock "0:00:12"]

1. e4 {[%clk 0:02:58]}  c6 {[%clk 0:03:00]} 2. Nf3 {[%clk 0:02:42]}  d5 {[%clk 0:03:01]} 3. Nc3 {[%clk 0:02:42]}  Bg4 {[%clk 0:03:01]} 4. h3 {[%clk 0:02:42]}  Bxf3 {[%clk 0:03:01]} 5. Qxf3 {[%clk 0:02:43]}  e6 {[%clk 0:03:02]} 6. b3 {[%clk 0:02:41]}  Nf6 {[%clk 0:02:53]} 7. Bb2 {[%clk 0:02:41]}  Nbd7 {[%clk 0:02:46]} 8. O-O-O {[%clk 0:02:36]}  dxe4 {[%clk 0:02:42]} 9. Nxe4 {[%clk 0:02:36]}  Nxe4 {[%clk 0:02:43]} 10. Qxe4 {[%clk 0:02:36]}  Nf6 {[%clk 0:02:44]} 11. Qh4 {[%clk 0:02:22]}  a5 {[%clk 0:02:39]} 12. a4 {[%clk 0:02:20]}  Nd5 {[%clk 0:02:39]} 13. Qxd8+ {[%clk 0:02:17]}  Rxd8 {[%clk 0:02:37]} 14. Bc4 {[%clk 0:02:17]}  Rg8 {[%clk 0:02:33]} 15. Rhe1 {[%clk 0:02:14]}  Be7 {[%clk 0:02:33]} 16. Kb1 {[%clk 0:02:11]}  Bf6 {[%clk 0:02:33]} 17. Ba3 {[%clk 0:02:09]}  Be7 {[%clk 0:02:32]} 18. Bb2 {[%clk 0:02:06]}  Bf6 {[%clk 0:02:33]} 19. g3 {[%clk 0:02:06]}  Bxb2 {[%clk 0:02:31]} 20. Kxb2 {[%clk 0:02:07]}  Ke7 {[%clk 0:02:30]} 21. d4 {[%clk 0:02:06]}  Rb8 {[%clk 0:02:16]} 22. Bf1 {[%clk 0:02:04]}  b5 {[%clk 0:02:08]} 23. axb5 {[%clk 0:02:03]}  cxb5 {[%clk 0:02:09]} 24. Ra1 {[%clk 0:02:04]}  a4 {[%clk 0:02:09]} 25. Ra3 {[%clk 0:01:41]}  Nc3 {[%clk 0:01:43]} 26. bxa4 {[%clk 0:01:28]}  Nxa4+ {[%clk 0:01:42]} 27. Kc1 {[%clk 0:01:25]}  Rgc8 {[%clk 0:01:36]} 28. Kd2 {[%clk 0:01:19]}  Nb2 {[%clk 0:01:30]} 29. Rb3 {[%clk 0:01:14]}  Nc4+ {[%clk 0:01:26]} 30. Kd3 {[%clk 0:01:10]}  Kf6 {[%clk 0:01:18]} 31. Reb1 {[%clk 0:01:09]}  Nd6 {[%clk 0:01:18]} 32. Kd2 {[%clk 0:00:59]}  Ne4+ {[%clk 0:01:15]} 33. Ke3 {[%clk 0:00:56]}  Nc3 {[%clk 0:01:07]} 34. Ra1 {[%clk 0:00:56]}  b4 {[%clk 0:01:00]} 35. Bd3 {[%clk 0:00:52]}  Nd5+ {[%clk 0:00:56]} 36. Kd2 {[%clk 0:00:52]}  Rc3 {[%clk 0:00:57]} 37. Rab1 {[%clk 0:00:49]}  Ra8 {[%clk 0:00:54]} 38. Be4 {[%clk 0:00:45]}  Rc4 {[%clk 0:00:44]} 39. Kd3 {[%clk 0:00:38]}  Rac8 {[%clk 0:00:44]} 40. Bxd5 {[%clk 0:00:28]}  exd5 {[%clk 0:00:45]} 41. R1b2 {[%clk 0:00:28]}  Rb8 {[%clk 0:00:37]} 42. Ra2 {[%clk 0:00:24]}  Re8 {[%clk 0:00:36]} 43. Ra5 {[%clk 0:00:20]}  Rd8 {[%clk 0:00:31]} 44. Rxd5 {[%clk 0:00:20]}  Rxd5 {[%clk 0:00:21]} 45. Kxc4 {[%clk 0:00:20]}  Rf5 {[%clk 0:00:22]} 46. f4 {[%clk 0:00:19]}  h5 {[%clk 0:00:22]} 47. Rxb4 {[%clk 0:00:18]}  h4 {[%clk 0:00:22]} 48. Rb6+ {[%clk 0:00:18]}  Ke7 {[%clk 0:00:22]} 49. Rb7+ {[%clk 0:00:18]}  Ke8 {[%clk 0:00:22]} 50. gxh4 {[%clk 0:00:18]}  Rxf4 {[%clk 0:00:22]} 51. Kd5 {[%clk 0:00:19]}  Rxh4 {[%clk 0:00:22]} 52. c4 {[%clk 0:00:19]}  Rxh3 {[%clk 0:00:22]} 53. c5 {[%clk 0:00:18]}  Rh5+ {[%clk 0:00:21]} 54. Kc6 {[%clk 0:00:18]}  Rh6+ {[%clk 0:00:20]} 55. Kb5 {[%clk 0:00:18]}  g5 {[%clk 0:00:20]} 56. c6 {[%clk 0:00:18]}  Kd8 {[%clk 0:00:19]} 57. Rxf7 {[%clk 0:00:17]}  Rg6 {[%clk 0:00:18]} 58. d5 {[%clk 0:00:18]}  g4 {[%clk 0:00:18]} 59. Kc5 {[%clk 0:00:18]}  g3 {[%clk 0:00:18]} 60. d6 {[%clk 0:00:18]}  Rg8 {[%clk 0:00:18]} 61. Rf1 {[%clk 0:00:18]}  g2 {[%clk 0:00:18]} 62. Rg1 {[%clk 0:00:19]}  Kc8 {[%clk 0:00:18]} 63. Kb6 {[%clk 0:00:19]}  Rg6 {[%clk 0:00:18]} 64. d7+ {[%clk 0:00:19]}  Kd8 {[%clk 0:00:18]} 65. Kb7 {[%clk 0:00:19]}  Rg8 {[%clk 0:00:13]} 66. Rd1 {[%clk 0:00:15]}  g1=Q {[%clk 0:00:12]} 67. c7+ {[%clk 0:00:15]}  Ke7 {[%clk 0:00:12]} 68. d8=Q+ {[%clk 0:00:16]}  Rxd8 {[%clk 0:00:12]} 69. cxd8=Q+ {[%clk 0:00:17]} 1-0


[Site "https://www.chess.com"]

[Event "Titled Tuesday Blitz May 2 Late 2023"]
[White "Ozates, Tuna"]
[Black "Shubenkova, Veronika"]
[WhiteFideId "6354521"]
[BlackFideId "44124040"]
[WhiteElo "2151"]
[BlackElo "2027"]
[Result "0-1"]
[Round "05"]
[TimeControl "180+2"]
[Date "2023.05.02"]
[WhiteClock "0:00:01"]
[BlackClock "0:00:14"]

1. e4 {[%clk 0:02:54]}  c6 {[%clk 0:02:59]} 2. d4 {[%clk 0:02:53]}  d5 {[%clk 0:03:00]} 3. exd5 {[%clk 0:02:53]}  cxd5 {[%clk 0:03:01]} 4. Bd3 {[%clk 0:02:52]}  Nc6 {[%clk 0:03:01]} 5. c3 {[%clk 0:02:53]}  Nf6 {[%clk 0:03:00]} 6. Bf4 {[%clk 0:02:54]}  h6 {[%clk 0:02:58]} 7. h3 {[%clk 0:02:52]}  e6 {[%clk 0:02:58]} 8. Nf3 {[%clk 0:02:51]}  Bd6 {[%clk 0:02:58]} 9. Ne5 {[%clk 0:02:51]}  O-O {[%clk 0:02:58]} 10. Nd2 {[%clk 0:02:51]}  Qc7 {[%clk 0:02:58]} 11. Ndf3 {[%clk 0:02:50]}  Ne4 {[%clk 0:02:58]} 12. Qe2 {[%clk 0:02:46]}  f5 {[%clk 0:02:57]} 13. Nxc6 {[%clk 0:02:23]}  Bxf4 {[%clk 0:02:52]} 14. Nce5 {[%clk 0:02:23]}  Nxc3 {[%clk 0:02:40]} 15. Qc2 {[%clk 0:02:04]}  Bxe5 {[%clk 0:02:31]} 16. Nxe5 {[%clk 0:01:58]}  Nb5 {[%clk 0:02:30]} 17. Qa4 {[%clk 0:01:50]}  Nd6 {[%clk 0:02:23]} 18. O-O {[%clk 0:01:50]}  Ne4 {[%clk 0:02:15]} 19. f3 {[%clk 0:01:44]}  Nf6 {[%clk 0:02:08]} 20. Rac1 {[%clk 0:01:33]}  Qd6 {[%clk 0:02:07]} 21. Qa3 {[%clk 0:01:14]}  Qb6 {[%clk 0:01:57]} 22. Qc5 {[%clk 0:00:51]}  Qxb2 {[%clk 0:01:53]} 23. Rb1 {[%clk 0:00:47]}  Qd2 {[%clk 0:01:45]} 24. Rf2 {[%clk 0:00:34]}  Qe3 {[%clk 0:01:43]} 25. Kf1 {[%clk 0:00:26]}  Nd7 {[%clk 0:01:39]} 26. Qc3 {[%clk 0:00:19]}  Nxe5 {[%clk 0:01:29]} 27. dxe5 {[%clk 0:00:19]}  d4 {[%clk 0:01:22]} 28. Qd2 {[%clk 0:00:13]}  Qxe5 {[%clk 0:01:21]} 29. Re1 {[%clk 0:00:13]}  Qd6 {[%clk 0:01:21]} 30. Bc4 {[%clk 0:00:13]}  Kh8 {[%clk 0:01:20]} 31. f4 {[%clk 0:00:14]}  Bd7 {[%clk 0:01:18]} 32. Rf3 {[%clk 0:00:13]}  b5 {[%clk 0:01:16]} 33. Bb3 {[%clk 0:00:12]}  Rf6 {[%clk 0:01:07]} 34. Rd3 {[%clk 0:00:12]}  Bc6 {[%clk 0:00:51]} 35. Rxd4 {[%clk 0:00:11]}  Qe7 {[%clk 0:00:44]} 36. Rd6 {[%clk 0:00:10]}  Be4 {[%clk 0:00:44]} 37. Rd1 {[%clk 0:00:06]}  Rg6 {[%clk 0:00:43]} 38. g4 {[%clk 0:00:04]}  fxg4 {[%clk 0:00:40]} 39. hxg4 {[%clk 0:00:04]}  Rxg4 {[%clk 0:00:31]} 40. Rxe6 {[%clk 0:00:02]}  Qh4 {[%clk 0:00:23]} 41. Rxe4 {[%clk 0:00:03]}  Qh1+ {[%clk 0:00:22]} 42. Kf2 {[%clk 0:00:03]}  Qxe4 {[%clk 0:00:19]} 43. Bd5 {[%clk 0:00:02]}  Rxf4+ {[%clk 0:00:18]} 44. Kg3 {[%clk 0:00:01]}  Rf3+ {[%clk 0:00:17]} 45. Kh2 {[%clk 0:00:01]}  Qh4+ {[%clk 0:00:17]} 46. Kg1 {[%clk 0:00:01]}  Rg3+ {[%clk 0:00:18]} 47. Bg2 {[%clk 0:00:02]}  Rf8 {[%clk 0:00:17]} 48. Re1 {[%clk 0:00:01]}  Qg4 {[%clk 0:00:15]} 49. Qc2 {[%clk 0:00:01]}  h5 {[%clk 0:00:14]} 50. Rd1 {[%clk 0:00:01]}  h4 {[%clk 0:00:14]} 51. Rd3 {[%clk 0:00:01]}  h3 {[%clk 0:00:14]} 52. Rxg3 {[%clk 0:00:01]}  Qxg3 {[%clk 0:00:14]} 0-1


[Site "https://www.chess.com"]